bitfinex/quotes_BTCUSD_20250225
["timestamp","ask_amount","ask_price","bid_price","bid_amount"]
[1740488002213,0.0006982,89413.0,89412.0,0.38193231]
[1740488002595,0.0006982,89413.0,89412.0,0.28193231]
[1740488002845,0.0006982,89413.0,89412.0,0.38193231]
[1740488005535,0.0006982,89413.0,89412.0,0.28193231]
[1740488005979,0.0006982,89413.0,89412.0,0.15261543]
[1740488006189,0.0006982,89413.0,89412.0,0.28349738]
[1740488006362,0.0006982,89413.0,89412.0,0.28193231]
[1740488006787,0.0006982,89413.0,89412.0,0.38193231]
[1740488009047,0.0006982,89413.0,89412.0,0.18193231]
[1740488009397,0.0817,89468.0,89450.0,0.02931688]
[1740488009597,0.0817,89468.0,89450.0,0.04385773]
[1740488009827,0.0817,89468.0,89450.0,0.04542258]
[1740488010055,0.0817,89468.0,89450.0,0.04853681]
[1740488010302,0.0817,89468.0,89450.0,0.00311423]
[1740488010303,0.00030271,89465.0,89450.0,0.00311423]
[1740488010545,0.05523279,89479.0,89450.0,0.00311423]
[1740488010782,0.25,89450.0,89419.0,0.0015652]
[1740488011054,0.06307475,89449.0,89418.0,0.01124]
[1740488011287,0.06307475,89449.0,89443.0,0.02931688]
[1740488011499,0.06307475,89449.0,89420.0,0.01454085]
[1740488011705,0.06307475,89449.0,89418.0,0.01124]
[1740488011706,0.1307475,89451.0,89434.0,0.02931688]
[1740488011913,0.1307475,89451.0,89410.0,0.0451]
[1740488012152,0.1307475,89451.0,89390.0,0.01197374]
[1740488012153,0.0814,89449.0,89417.0,0.01124]
[1740488012359,1.25838171,89450.0,89411.0,0.8663]
[1740488012360,0.0814,89446.0,89411.0,0.8663]
[1740488012534,0.25,89444.0,89427.0,0.02931688]
[1740488012734,0.25,89442.0,89427.0,0.02931688]
[1740488012972,0.25,89440.0,89427.0,0.02931688]
[1740488013115,0.25,89438.0,89427.0,0.02931688]
[1740488013538,0.275,89438.0,89413.0,0.01454085]
[1740488013767,0.0762,89437.0,89427.0,0.02931688]
[1740488015081,0.0762,89437.0,89426.0,0.02931688]
[1740488015282,0.07654116,89437.0,89427.0,0.02931688]
[1740488015488,0.08419528,89437.0,89427.0,0.02931688]
[1740488015911,0.08385412,89437.0,89428.0,0.8663]
[1740488016110,0.0762,89437.0,89428.0,0.8663]
[1740488016311,0.0762,89437.0,89429.0,0.00314187]
[1740488021938,0.0762,89437.0,89430.0,0.8663]
[1740488022272,0.0762,89437.0,89415.0,0.01124]
[1740488022273,0.0751,89446.0,89433.0,0.02931688]
[1740488022487,0.0008478,89449.0,89445.0,0.02931688]
[1740488022683,0.0008478,89449.0,89446.0,0.8663]
[1740488022977,0.0008478,89449.0,89448.0,0.02931688]
[1740488023648,0.0008478,89449.0,89448.0,0.03249547]
[1740488026697,0.0008478,89449.0,89448.0,0.89879547]
[1740488030264,0.25,89471.0,89459.0,0.02931688]
[1740488030467,0.25,89471.0,89460.0,0.8663]
[1740488030617,0.25,89471.0,89460.0,0.86944142]
[1740488031370,0.05597221,89496.0,89460.0,0.86944142]
[1740488031574,0.25,89494.0,89461.0,0.8663]
[1740488031747,3.527238,89493.0,89461.0,0.8663]
[1740488031949,3.759268,89492.0,89461.0,0.8663]
[1740488032173,0.25,89490.0,89462.0,0.00314142]
[1740488032373,0.25,89488.0,89462.0,0.00314142]
[1740488032527,0.25,89486.0,89461.0,0.8663]
[1740488032724,0.25,89484.0,89463.0,0.00314142]
[1740488032932,0.25,89484.0,89461.0,0.8663]
[1740488032933,0.25,89482.0,89461.0,0.8663]
[1740488033137,0.25,89478.0,89464.0,0.00314142]
[1740488033337,3.9382812,89481.0,89461.0,0.8663]
[1740488033338,0.2969,89472.0,89461.0,0.3235]
[1740488033515,0.3251,89469.0,89461.0,0.3235]
[1740488033740,0.0781,89466.0,89461.0,0.3235]
[1740488033952,0.25,89464.0,89461.0,0.3235]
[1740488034157,0.25,89462.0,89461.0,0.3235]
[1740488034363,1.752162,89462.0,89461.0,0.3235]
[1740488035004,0.0815,89459.0,89440.0,0.3235]
[1740488035214,0.0815,89456.0,89440.0,0.3235]
[1740488035389,0.25,89454.0,89441.0,0.00311783]
[1740488035603,0.25,89452.0,89440.0,0.3235]
[1740488035806,0.25,89450.0,89440.0,0.3235]
[1740488036008,0.25,89448.0,89440.0,0.3235]
[1740488036276,0.25,89446.0,89440.0,0.3235]
[1740488036439,0.332,89444.0,89440.0,0.3235]
[1740488036646,0.082,89441.0,89433.0,0.3235]
[1740488036849,0.25,89439.0,89415.0,0.3235]
[1740488037051,0.25,89437.0,89415.0,0.3235]
[1740488037253,0.25,89435.0,89415.0,0.3235]
[1740488037415,0.0485,89432.0,89415.0,0.3235]
[1740488037616,0.25,89430.0,89415.0,0.3235]
[1740488037813,0.25,89428.0,89415.0,0.3235]
[1740488038066,0.25,89426.0,89415.0,0.3235]
[1740488038269,0.25,89424.0,89415.0,0.3235]
[1740488038443,0.25,89422.0,89415.0,0.3235]
[1740488038647,0.25,89420.0,89415.0,0.3235]
[1740488038968,0.06263212,89424.0,89415.0,0.3235]
[1740488038969,0.25,89418.0,89415.0,0.3235]
[1740488039140,0.25,89416.0,89415.0,0.3235]
[1740488039501,1.718736,89416.0,89415.0,0.3235]
[1740488040708,0.25,89416.0,89415.0,0.3235]
[1740488040914,0.0752,89434.0,89415.0,0.3235]
[1740488041127,0.25,89432.0,89415.0,0.32678497]
[1740488041332,0.25,89430.0,89415.0,0.32678497]
[1740488041873,0.25,89428.0,89415.0,0.32678497]
[1740488042055,0.25,89426.0,89415.0,0.3235]
[1740488042210,0.25,89424.0,89415.0,0.3235]
[1740488042409,0.25,89422.0,89415.0,0.3235]
[1740488042756,0.25,89420.0,89415.0,0.3235]
[1740488042955,0.25,89418.0,89415.0,0.3235]
[1740488043178,0.999771,89417.0,89416.0,0.00327348]
[1740488043459,0.984505,89417.0,89416.0,0.00327348]
[1740488043697,1.21306949,89417.0,89416.0,0.00327348]
[1740488044122,1.10535949,89417.0,89416.0,0.00327348]
[1740488044299,1.001095,89417.0,89416.0,0.00327348]
[1740488044865,1.001095,89417.0,89413.0,0.0016956]
[1740488045066,0.07068312,89414.0,89413.0,0.0016956]
[1740488045276,0.07068312,89414.0,89388.0,0.3235]
[1740488045277,0.07068312,89409.0,89388.0,0.3235]
[1740488045460,0.07068312,89401.0,89388.0,0.3235]
[1740488045664,4.30118196,89401.0,89388.0,0.3235]
[1740488045869,4.30118196,89401.0,89361.0,0.5428]
[1740488045870,4.38640593,89401.0,89361.0,0.5428]
[1740488046075,4.30118196,89401.0,89362.0,0.5428]
[1740488046304,3.11488912,89401.0,89371.0,0.09042051]
[1740488046492,3.36476992,89401.0,89371.0,0.09042051]
[1740488046896,3.1985808,89401.0,89371.0,0.09042051]
[1740488047097,3.18403995,89401.0,89371.0,0.09042051]
[1740488047562,3.68403995,89401.0,89371.0,0.09042051]
[1740488047764,2.52343695,89401.0,89380.0,0.09042051]
[1740488048176,2.33799595,89401.0,89380.0,0.09042051]
[1740488048374,1.63072095,89401.0,89380.0,0.09042051]
[1740488048890,1.75911876,89401.0,89380.0,0.09042051]
[1740488049320,1.70610149,89401.0,89380.0,0.09042051]
[1740488049519,1.70097881,89401.0,89380.0,0.09042051]
[1740488050127,1.68643796,89401.0,89380.0,0.09042051]
[1740488050780,1.70097881,89401.0,89380.0,0.09042051]
[1740488051196,1.68643796,89401.0,89380.0,0.09042051]
[1740488051417,1.572581,89401.0,89380.0,0.09042051]
[1740488051623,0.91955,89401.0,89381.0,0.8663]
[1740488051828,0.25,89400.0,89381.0,0.8338531]
[1740488052082,2.828313,89400.0,89382.0,0.83695625]
[1740488052331,0.25,89398.0,89382.0,0.83695625]
[1740488052537,0.01454085,89395.0,89382.0,0.8338531]
[1740488052811,0.01454085,89391.0,89382.0,0.8338531]
[1740488053057,0.01454085,89388.0,89383.0,0.00310315]
[1740488053290,0.25,89386.0,89382.0,0.8338531]
[1740488053505,0.25,89384.0,89382.0,0.8338531]
[1740488053705,2.38029996,89383.0,89382.0,0.8338531]
[1740488053954,3.91133096,89383.0,89382.0,0.8338531]
[1740488054169,3.64785196,89383.0,89382.0,0.8338531]
[1740488054484,2.97793096,89383.0,89382.0,0.8338531]
[1740488055061,0.25,89382.0,89376.0,0.0016964]
[1740488055268,0.01454085,89379.0,89376.0,0.0016964]
[1740488055466,3.262691,89378.0,89376.0,0.0016964]
[1740488055707,3.895868,89380.0,89376.0,0.0016964]
[1740488055835,3.937325,89379.0,89376.0,0.0016964]
[1740488056042,3.912799,89380.0,89376.0,0.0016964]
[1740488056242,3.0409143,89380.0,89376.0,0.0016964]
[1740488056464,1.761435,89379.0,89376.0,0.0016964]
[1740488056745,2.938714,89382.0,89376.0,0.0016964]
[1740488056945,1.390782,89382.0,89376.0,0.0016964]
[1740488057161,2.297706,89387.0,89376.0,0.0016964]
[1740488057517,0.25,89385.0,89376.0,0.0016964]
[1740488057752,0.25,89383.0,89376.0,0.0016964]
[1740488057902,0.25,89381.0,89376.0,0.0016964]
[1740488058107,0.25,89379.0,89376.0,0.0016964]
[1740488058310,0.25,89377.0,89376.0,0.0016964]
[1740488058515,0.48612,89377.0,89376.0,0.0016964]
[1740488059405,0.534732,89377.0,89376.0,0.0016964]
[1740488059645,0.98612,89377.0,89376.0,0.0016964]
[1740488059784,0.44755278,89377.0,89376.0,0.0016964]
[1740488059999,0.44755278,89377.0,89376.0,0.00484634]
[1740488060157,0.49999978,89377.0,89376.0,0.0016964]
[1740488060818,0.49999978,89377.0,89376.0,0.00484634]
[1740488061045,0.49999978,89377.0,89376.0,0.0016964]
[1740488061165,0.49999978,89377.0,89376.0,0.00484634]
[1740488061789,0.94952076,89377.0,89376.0,0.00484634]
[1740488061976,0.89952078,89377.0,89376.0,0.00484634]
[1740488062669,0.74999978,89377.0,89376.0,0.00484634]
[1740488062904,1.74260178,89377.0,89376.0,0.00484634]
[1740488063082,1.62041478,89377.0,89376.0,0.0016964]
[1740488063382,1.57760178,89377.0,89376.0,0.0016964]
[1740488064438,1.69145874,89377.0,89376.0,0.0016964]
[1740488066237,1.57760178,89377.0,89376.0,0.0016964]
[1740488069234,0.86129078,89377.0,89376.0,0.0016964]
[1740488069473,0.86129078,89377.0,89376.0,0.3251964]
[1740488069709,0.74999978,89377.0,89376.0,0.32833838]
[1740488070354,0.49999978,89377.0,89376.0,0.32833838]
[1740488070702,0.74999978,89377.0,89376.0,0.32833838]
[1740488071127,1.59004163,89377.0,89376.0,0.32833838]
[1740488071298,2.12440478,89377.0,89376.0,0.32833838]
[1740488071525,2.12440478,89377.0,89376.0,0.3251964]
[1740488072071,2.14196454,89377.0,89376.0,0.3251964]
[1740488073333,2.14196454,89377.0,89376.0,0.0016964]
[1740488073529,0.0452,89374.0,89349.0,0.3235]
[1740488073760,0.0452,89374.0,89348.0,0.0016968]
[1740488073761,0.05596491,89371.0,89348.0,0.0016968]
[1740488073972,0.25,89372.0,89348.0,0.0016968]
[1740488073973,0.01454085,89366.0,89348.0,0.0016968]
[1740488074199,0.0552448,89363.0,89348.0,0.0016968]
[1740488074331,0.30565092,89361.0,89348.0,0.0016968]
[1740488074542,0.25,89359.0,89348.0,0.0016968]
[1740488074801,0.25,89357.0,89348.0,0.0016968]
[1740488075000,0.25,89355.0,89348.0,0.0016968]
[1740488075279,0.25,89353.0,89348.0,0.0016968]
[1740488075437,0.25,89351.0,89348.0,0.0016968]
[1740488075646,0.25,89349.0,89348.0,0.0016968]
[1740488075821,3.046455,89349.0,89348.0,0.0016968]
[1740488076174,2.30084393,89349.0,89348.0,0.0016968]
[1740488076599,2.17788093,89349.0,89348.0,0.0016968]
[1740488076803,2.30930449,89349.0,89348.0,0.0016968]
[1740488077213,2.19544753,89349.0,89348.0,0.0016968]
[1740488077415,0.0175666,89349.0,89348.0,0.0016968]
[1740488077552,0.2675666,89349.0,89348.0,0.0016968]
[1740488078557,1.1064326,89349.0,89348.0,0.0016968]
[1740488078692,0.2675666,89349.0,89348.0,0.0016968]
[1740488079118,2.12423256,89349.0,89348.0,0.0016968]
[1740488079293,2.75368256,89349.0,89348.0,0.0016968]
[1740488079548,2.75651856,89349.0,89348.0,0.0016968]
[1740488079840,1.9465336,89349.0,89348.0,0.0016968]
[1740488080044,1.1159196,89349.0,89348.0,0.0016968]
[1740488080254,1.0772556,89349.0,89348.0,0.0016968]
[1740488080774,0.8211366,89349.0,89348.0,0.0016968]
[1740488081552,0.3874106,89349.0,89348.0,0.0016968]
[1740488081767,0.0175666,89349.0,89348.0,0.0016968]
[1740488082175,0.5,89357.0,89348.0,0.00462942]
[1740488082378,0.45161,89356.0,89348.0,0.0016968]
[1740488082581,0.25,89355.0,89348.0,0.0016968]
[1740488082777,0.564664,89355.0,89348.0,0.0016968]
[1740488082953,0.25,89353.0,89348.0,0.0016968]
[1740488084092,0.25,89356.0,89348.0,0.0016968]
[1740488084303,0.339364,89355.0,89348.0,0.0016968]
[1740488085428,0.26756519,89354.0,89348.0,0.0016968]
[1740488085595,0.111452,89353.0,89348.0,0.0016968]
[1740488086286,0.01756519,89354.0,89348.0,0.0016968]
[1740488086910,0.01756519,89354.0,89353.0,0.02931688]
[1740488087275,0.01756519,89354.0,89353.0,0.03220801]
[1740488087832,0.01756519,89354.0,89353.0,0.00289113]
[1740488087833,0.03527864,89354.0,89353.0,0.00289113]
[1740488088081,0.29062897,89354.0,89348.0,0.3251968]
[1740488088284,0.25,89352.0,89348.0,0.3251968]
[1740488088460,0.25,89350.0,89348.0,0.3251968]
[1740488088659,0.92877,89349.0,89348.0,0.3251968]
[1740488088867,0.751014,89349.0,89348.0,0.3251968]
[1740488089135,0.82964326,89349.0,89348.0,0.3251968]
[1740488089703,0.751014,89349.0,89348.0,0.3251968]
[1740488090239,0.751014,89349.0,89348.0,0.0016968]
[1740488090615,0.685934,89349.0,89348.0,0.0016968]
[1740488092563,0.25,89349.0,89348.0,0.0016968]
[1740488092839,1.26811,89349.0,89348.0,0.0016968]
[1740488093062,1.266109,89349.0,89348.0,0.0016968]
[1740488093440,0.830627,89349.0,89348.0,0.0016968]
[1740488093702,0.361357,89349.0,89348.0,0.0016968]
[1740488095178,0.3974927,89349.0,89348.0,0.0016968]
[1740488095400,0.41505835,89349.0,89348.0,0.0016968]
[1740488097741,0.37892265,89349.0,89348.0,0.0016968]
[1740488098958,0.37892265,89349.0,89348.0,0.35451368]
[1740488098959,0.01756565,89349.0,89348.0,0.35451368]
[1740488099173,0.01756565,89349.0,89348.0,0.35722821]
[1740488101438,0.01756565,89349.0,89348.0,0.35726821]
[1740488102711,0.25,89356.0,89348.0,0.35726821]
[1740488102981,0.25,89356.0,89355.0,0.02931688]
[1740488103423,0.5,89357.0,89355.0,0.02931688]
[1740488103424,0.5,89357.0,89356.0,0.02931688]
[1740488103628,0.5,89357.0,89356.0,0.07881688]
[1740488103776,0.5,89357.0,89356.0,0.08152582]
[1740488104816,0.75,89357.0,89356.0,0.08152582]
[1740488105176,0.75,89357.0,89356.0,0.07881688]
[1740488105379,0.76756087,89357.0,89356.0,0.12707857]
[1740488105579,0.76756087,89357.0,89356.0,0.08146415]
[1740488105787,0.76756087,89357.0,89356.0,0.07881688]
[1740488105999,0.76756087,89357.0,89356.0,0.09001688]
[1740488106599,0.76756087,89357.0,89356.0,0.07885688]
[1740488107263,0.26756087,89357.0,89356.0,0.07885688]
[1740488107644,0.26756087,89357.0,89356.0,0.08131066]
[1740488108170,0.26756087,89357.0,89356.0,0.40481066]
[1740488108603,0.26756087,89357.0,89356.0,0.37549378]
[1740488108749,0.26756087,89357.0,89356.0,0.35531066]
[1740488109108,0.25,89357.0,89356.0,0.35531066]
[1740488109510,0.25,89357.0,89356.0,0.32599378]
[1740488110139,0.25,89357.0,89356.0,0.35531066]
[1740488110347,0.25,89357.0,89356.0,0.43681066]
[1740488114291,0.10007769,89361.0,89360.0,0.02931688]
[1740488114672,0.10007769,89361.0,89360.0,0.03174273]
[1740488114876,0.35007769,89361.0,89360.0,0.03174273]
[1740488115689,0.35007769,89361.0,89360.0,0.13231631]
[1740488115894,0.35007769,89361.0,89360.0,0.20811631]
[1740488116065,0.35007769,89361.0,89360.0,0.95593668]
[1740488116491,0.36763795,89361.0,89360.0,0.95593668]
[1740488117027,0.26756026,89361.0,89360.0,0.95593668]
[1740488118495,0.26756026,89361.0,89360.0,0.32592585]
[1740488118697,0.2939064,89361.0,89360.0,0.32592585]
[1740488118886,0.32088474,89361.0,89360.0,0.32592585]
[1740488119088,0.30332448,89361.0,89360.0,0.32592585]
[1740488119525,0.0817,89364.0,89360.0,0.32592585]
[1740488120105,1.309773,89363.0,89360.0,0.00242585]
[1740488120309,1.264186,89362.0,89356.0,4e-05]
[1740488120482,1.746267,89361.0,89356.0,4e-05]
[1740488120701,0.01454085,89360.0,89356.0,4e-05]
[1740488120901,0.01454085,89360.0,89331.0,0.02931688]
[1740488120902,2.62873796,89359.0,89331.0,0.02931688]
[1740488121107,3.039175,89358.0,89331.0,0.02931688]
[1740488121282,1.986109,89357.0,89331.0,0.02931688]
[1740488121493,0.25,89355.0,89331.0,0.02931688]
[1740488121842,0.25,89353.0,89332.0,0.02931688]
[1740488121977,0.25,89351.0,89332.0,0.02931688]
[1740488122320,0.25,89349.0,89332.0,0.02931688]
[1740488122543,1.288653,89349.0,89332.0,0.02931688]
[1740488122742,1.29169518,89349.0,89332.0,0.02931688]
[1740488123140,1.40555214,89349.0,89332.0,0.02931688]
[1740488123510,1.42311931,89349.0,89332.0,0.02931688]
[1740488124077,1.30926235,89349.0,89332.0,0.02931688]
[1740488124305,1.27636335,89349.0,89332.0,0.02931688]
[1740488124640,1.27332117,89349.0,89332.0,0.02931688]
[1740488124783,1.27332117,89349.0,89325.0,0.09042051]
[1740488124982,1.27332117,89349.0,89332.0,0.02931688]
[1740488125389,1.27332117,89349.0,89324.0,0.3235]
[1740488125390,0.01454085,89348.0,89324.0,0.3235]
[1740488125596,0.25,89346.0,89322.0,0.03101248]
[1740488125796,0.25,89344.0,89322.0,0.03101248]
[1740488125990,0.25,89342.0,89322.0,0.03101248]
[1740488126197,0.033716,89345.0,89322.0,0.03101248]
[1740488126198,0.25,89340.0,89322.0,0.03101248]
[1740488126398,0.25,89338.0,89322.0,0.03101248]
[1740488126634,0.25,89336.0,89322.0,0.03101248]
[1740488126821,0.25,89334.0,89322.0,0.03101248]
[1740488127154,0.25,89332.0,89322.0,0.0016956]
[1740488127301,0.25,89330.0,89322.0,0.03101248]
[1740488127501,0.25,89328.0,89322.0,0.03101248]
[1740488127923,0.01756927,89327.0,89322.0,0.0016956]
[1740488128560,0.01756927,89327.0,89322.0,0.03101248]
[1740488129212,0.25,89325.0,89322.0,0.0016956]
[1740488129387,0.610693,89324.0,89322.0,0.0016956]
[1740488129801,0.544005,89324.0,89322.0,0.0016956]
[1740488130022,0.25,89324.0,89322.0,0.0016956]
[1740488132911,0.47068312,89324.0,89322.0,0.0016956]
[1740488133385,0.74999912,89324.0,89322.0,0.0016956]
[1740488133592,0.76756726,89324.0,89322.0,0.0016956]
[1740488133800,0.51756726,89324.0,89322.0,0.0016956]
[1740488134008,0.51756726,89324.0,89323.0,0.325197]
[1740488134215,0.51841646,89324.0,89323.0,0.373197]
[1740488134410,0.01841734,89324.0,89323.0,0.8835501]
[1740488134645,0.01841734,89324.0,89323.0,0.89809095]
[1740488135696,0.01841734,89324.0,89323.0,0.8947101]
[1740488138031,0.01841734,89324.0,89323.0,0.8835501]
[1740488138717,0.0008492,89324.0,89323.0,0.8835501]
[1740488140265,0.0008492,89324.0,89323.0,0.99557152]
[1740488142071,0.03744418,89358.0,89324.0,0.01454085]
[1740488142265,0.0008488,89372.0,89325.0,0.83541985]
[1740488142465,0.0008488,89372.0,89325.0,0.8338531]
[1740488142640,0.00809975,89371.0,89327.0,0.01454085]
[1740488142847,0.00809975,89371.0,89326.0,0.0273771]
[1740488142848,0.00809975,89371.0,89330.0,0.0833]
[1740488143044,0.00809975,89371.0,89332.0,0.01454085]
[1740488143268,0.00809975,89371.0,89334.0,0.01454085]
[1740488143468,0.00809975,89371.0,89335.0,0.00156675]
[1740488143669,0.00809975,89371.0,89336.0,0.00994076]
[1740488143871,0.00809975,89371.0,89337.0,0.00156675]
[1740488144215,0.0008488,89372.0,89338.0,0.01454085]
[1740488144417,0.0008488,89372.0,89342.0,0.01454085]
[1740488144641,0.0008488,89372.0,89343.0,0.51191969]
[1740488144843,0.0008488,89372.0,89344.0,0.84839395]
[1740488145045,0.0008488,89372.0,89346.0,0.01454085]
[1740488145379,0.0008488,89372.0,89341.0,0.077]
[1740488145380,0.0008488,89372.0,89348.0,0.01454085]
[1740488145539,0.0008488,89372.0,89350.0,0.01454085]
[1740488145944,0.01756153,89367.0,89350.0,0.01454085]
[1740488147130,0.01756153,89367.0,89351.0,0.00156646]
[1740488147300,0.01756153,89367.0,89350.0,0.01454085]
[1740488147468,0.01756153,89367.0,89351.0,0.02737681]
[1740488149530,0.01756153,89367.0,89352.0,0.8338531]
[1740488150673,0.01756153,89367.0,89353.0,0.00156655]
[1740488151712,0.01756153,89367.0,89352.0,0.8450131]
[1740488152030,0.01756153,89367.0,89353.0,0.00156645]
[1740488152188,0.01756153,89367.0,89353.0,0.08622441]
[1740488152729,0.01756153,89367.0,89354.0,0.8338531]
[1740488153289,0.01756153,89367.0,89355.0,0.00156644]
[1740488154539,0.01756153,89367.0,89354.0,0.8338531]
[1740488155350,0.01756153,89367.0,89356.0,0.129]
[1740488155556,0.01756153,89367.0,89358.0,0.01454085]
[1740488155806,0.0008492,89371.0,89359.0,0.00156637]
[1740488156006,0.0008492,89371.0,89360.0,0.84839395]
[1740488156208,0.0008492,89371.0,89362.0,0.01454085]
[1740488156404,0.0008492,89371.0,89365.0,0.0794]
[1740488156730,0.0008492,89371.0,89366.0,0.84996009]
[1740488156898,0.0008492,89371.0,89366.0,0.84839395]
[1740488158012,0.0008492,89371.0,89366.0,0.8450131]
[1740488158217,0.0008492,89371.0,89367.0,0.00156635]
[1740488158629,0.0008492,89371.0,89367.0,0.00156632]
[1740488158854,0.01840872,89371.0,89368.0,0.09259794]
[1740488159208,0.01840872,89371.0,89369.0,0.0015663]
[1740488159510,0.01840872,89371.0,89367.0,0.01454085]
[1740488159757,0.02040872,89371.0,89367.0,0.01610711]
[1740488159929,0.02040872,89371.0,89367.0,0.01454085]
[1740488160132,0.02040872,89371.0,89366.0,0.8450131]
[1740488160287,0.02040872,89371.0,89367.0,0.09244131]
[1740488160493,0.02040872,89371.0,89368.0,0.00156631]
[1740488160695,0.05582542,89429.0,89369.0,0.01454085]
[1740488160696,0.01584274,89411.0,89369.0,0.01454085]
[1740488160919,0.933472,89410.0,89370.0,0.83541922]
[1740488161077,0.791517,89410.0,89372.0,0.0453]
[1740488161282,0.01584274,89411.0,89373.0,0.00156612]
[1740488161479,0.224585,89410.0,89373.0,0.00156612]
[1740488161731,0.224585,89410.0,89372.0,0.04686612]
[1740488161936,0.02955575,89409.0,89373.0,0.09244131]
[1740488162131,0.646886,89408.0,89373.0,0.09244131]
[1740488162345,0.525746,89408.0,89374.0,0.00156612]
[1740488162643,0.564386,89408.0,89374.0,0.00156612]
[1740488163276,0.564386,89408.0,89373.0,0.09244131]
[1740488163421,0.63158356,89408.0,89374.0,0.03084961]
[1740488163611,0.641161,89407.0,89374.0,0.03084961]
[1740488163815,0.608921,89407.0,89374.0,0.03084961]
[1740488164074,0.509065,89406.0,89374.0,0.03084961]
[1740488164280,0.06719756,89408.0,89374.0,0.03084961]
[1740488164281,0.389099,89405.0,89374.0,0.03084961]
[1740488164519,0.650412,89407.0,89375.0,0.92786053]
[1740488164670,0.650412,89407.0,89375.0,0.92629441]
[1740488164671,0.935827,89407.0,89375.0,0.92629441]
[1740488164926,0.01755838,89398.0,89375.0,0.92629441]
[1740488165316,0.01755838,89398.0,89375.0,0.8338531]
[1740488165516,0.52730656,89397.0,89375.0,0.8338531]
[1740488165695,0.650462,89396.0,89375.0,0.8338531]
[1740488165882,0.464773,89396.0,89376.0,0.8338531]
[1740488166109,0.572538,89397.0,89376.0,0.8338531]
[1740488166304,0.05950964,89396.0,89376.0,0.8338531]
[1740488166529,1.097253,89395.0,89376.0,0.8338531]
[1740488166907,1.017647,89395.0,89376.0,0.8338531]
[1740488167117,1.130975,89394.0,89376.0,0.8338531]
[1740488167338,0.3,89392.0,89376.0,0.8268531]
[1740488167542,0.02255838,89398.0,89376.0,0.8268531]
[1740488167543,0.3,89390.0,89376.0,0.3235]
[1740488167959,0.3,89390.0,89376.0,0.3245]
[1740488168172,0.01756042,89387.0,89376.0,0.3235]
[1740488168382,0.3,89390.0,89376.0,0.3245]
[1740488168574,0.01939371,89389.0,89376.0,0.3245]
[1740488168775,0.007,89396.0,89376.0,0.3245]
[1740488169041,0.3,89394.0,89376.0,0.3235]
[1740488169278,0.006,89390.0,89376.0,0.3245]
[1740488169478,0.3,89388.0,89376.0,0.3245]
[1740488169678,0.3,89386.0,89376.0,0.3245]
[1740488169887,0.3,89384.0,89376.0,0.3255]
[1740488170062,0.3,89382.0,89376.0,0.3255]
[1740488170270,0.3,89382.0,89376.0,0.3245]
[1740488170471,0.3,89382.0,89376.0,0.3255]
[1740488170672,0.3,89382.0,89376.0,0.3245]
[1740488171078,0.03,89381.0,89376.0,0.3245]
[1740488171329,0.01756181,89381.0,89376.0,0.3245]
[1740488171563,0.01756181,89381.0,89376.0,0.3235]
[1740488171804,0.01756181,89381.0,89376.0,0.3245]
[1740488172161,0.01756181,89381.0,89376.0,0.3235]
[1740488172604,0.02256181,89381.0,89376.0,0.3235]
[1740488173270,0.02656181,89381.0,89376.0,0.3235]
[1740488174468,0.10005009,89380.0,89377.0,0.0793]
[1740488174889,0.10005009,89380.0,89378.0,0.8268531]
[1740488175636,0.3,89379.0,89378.0,0.8268531]
[1740488175836,0.10005009,89380.0,89378.0,0.8268531]
[1740488176413,0.10005009,89380.0,89379.0,0.00156624]
[1740488176558,0.10405009,89380.0,89378.0,0.8268531]
[1740488176758,0.3,89379.0,89378.0,0.8268531]
[1740488177160,0.10305009,89380.0,89379.0,0.0798]
[1740488177370,0.10205009,89380.0,89379.0,0.9082191]
[1740488177674,0.10205009,89380.0,89379.0,0.92119395]
[1740488177675,0.11960813,89380.0,89379.0,0.92119395]
[1740488177882,0.41960813,89380.0,89379.0,1.07770104]
[1740488178087,0.01955804,89380.0,89379.0,1.07770104]
[1740488178324,0.01755804,89380.0,89379.0,1.07770104]
[1740488178848,0.10005009,89404.0,89384.0,0.0815]
[1740488179048,0.10005009,89404.0,89385.0,0.00156582]
[1740488179354,0.10005009,89404.0,89389.0,0.0815]
[1740488179507,0.10005009,89404.0,89390.0,0.01510663]
[1740488179950,0.3,89403.0,89390.0,0.01510663]
[1740488180160,0.3,89403.0,89391.0,0.01436066]
[1740488180521,0.3,89403.0,89394.0,0.0469]
[1740488180651,0.3,89403.0,89395.0,0.8268531]
[1740488182468,0.3,89403.0,89396.0,0.00156579]
[1740488182837,0.0008482,89429.0,89401.0,0.076]
[1740488182838,0.10005009,89426.0,89401.0,0.076]
[1740488183041,0.10005009,89426.0,89410.0,0.09042051]
[1740488183256,0.10005009,89426.0,89411.0,0.13518545]
[1740488183433,0.10005009,89426.0,89413.0,0.01454085]
[1740488183633,0.10005009,89426.0,89415.0,0.0801]
[1740488183841,0.10005009,89426.0,89416.0,0.00156526]
[1740488184053,0.10005009,89426.0,89417.0,0.04498534]
[1740488184255,0.10705009,89426.0,89419.0,0.01454085]
[1740488184404,0.10005009,89426.0,89420.0,0.8268531]
[1740488184605,0.10005009,89426.0,89421.0,0.0777]
[1740488184883,0.10005009,89426.0,89423.0,0.0453]
[1740488185064,0.10005009,89426.0,89424.0,0.00156526]
[1740488185380,0.11760085,89426.0,89423.0,0.13814643]
[1740488185522,0.11760085,89426.0,89423.0,0.04686535]
[1740488185944,0.3,89425.0,89423.0,0.04686535]
[1740488186349,0.3,89425.0,89424.0,0.003]
[1740488186551,0.3,89425.0,89424.0,0.09844185]
[1740488186929,0.01755076,89426.0,89424.0,0.09544185]
[1740488187127,0.01755076,89426.0,89425.0,0.00156522]
[1740488187534,0.01755076,89426.0,89423.0,0.0453]
[1740488187780,0.01755076,89426.0,89424.0,0.001]
[1740488188111,0.01755076,89426.0,89423.0,0.0453]
[1740488188274,0.01755076,89426.0,89424.0,0.8268531]
[1740488189965,0.01755076,89426.0,89425.0,0.3235]
[1740488190435,0.0008482,89429.0,89425.0,0.3235]
[1740488191011,0.001,89426.0,89425.0,0.3235]
[1740488193088,0.0078482,89429.0,89425.0,0.3235]
[1740488193643,0.001,89426.0,89425.0,0.3235]
[1740488194242,0.0183996,89429.0,89425.0,0.8268531]
[1740488194425,0.0203996,89429.0,89426.0,0.82641842]
[1740488194635,0.0203996,89429.0,89426.0,0.8248531]
[1740488194831,0.0028482,89429.0,89427.0,0.08887052]